[Event "Early-Titled-Tuesday-Blitz-October-24-2023"]
[Site "Chess.com"]
[Date "2023.10.24"]
[Round "1"]
[White "Millerkallpa"]
[Black "dosto07"]
[Result "1-0"]
[WhiteElo "2056"]
[BlackElo "2515"]
[TimeControl "180+1"]
[EndTime "8:07:14 PDT"]
[Termination "Millerkallpa won on time"]

1. e4 {[%clk 0:03:00.3]} 1... e5 {[%clk 0:02:59.5]} 2. Nf3 {[%clk 0:02:59.6]}
2... Nc6 {[%clk 0:02:59.7]} 3. Bb5 {[%clk 0:02:59.3]} 3... a6 {[%clk 0:02:59.8]}
4. Ba4 {[%clk 0:02:58.9]} 4... Nf6 {[%clk 0:03:00.4]} 5. O-O {[%clk 0:02:55.6]}
5... Be7 {[%clk 0:03:00.7]} 6. Re1 {[%clk 0:02:54.5]} 6... b5 {[%clk 0:03:00.7]}
7. Bb3 {[%clk 0:02:54.7]} 7... d6 {[%clk 0:03:01.1]} 8. c3 {[%clk 0:02:53.6]}
8... O-O {[%clk 0:03:00]} 9. h3 {[%clk 0:02:52.9]} 9... Bb7 {[%clk 0:03:00.3]}
10. d4 {[%clk 0:02:52.1]} 10... Re8 {[%clk 0:02:59.5]} 11. a4 {[%clk 0:02:33.4]}
11... Bf8 {[%clk 0:02:49.7]} 12. Na3 {[%clk 0:02:29.7]} 12... h6 {[%clk
0:02:46]} 13. Qd3 {[%clk 0:01:48]} 13... Na5 {[%clk 0:02:21.1]} 14. Ba2 {[%clk
0:01:42.8]} 14... exd4 {[%clk 0:02:15.3]} 15. Nxd4 {[%clk 0:01:05.6]} 15... Bxe4
{[%clk 0:01:47.7]} 16. Qg3 {[%clk 0:01:04.6]} 16... bxa4 {[%clk 0:01:32]} 17.
Bxh6 {[%clk 0:00:54.6]} 17... Bg6 {[%clk 0:01:23]} 18. Qxg6 {[%clk 0:00:52.8]}
18... Nb3 {[%clk 0:01:18.6]} 19. Bxb3 {[%clk 0:00:51.9]} 19... axb3 {[%clk
0:01:18.1]} 20. Qg3 {[%clk 0:00:51.6]} 20... Qd7 {[%clk 0:01:10.2]} 21. Bg5
{[%clk 0:00:50.4]} 21... Ne4 {[%clk 0:01:09.2]} 22. Qh4 {[%clk 0:00:45.9]} 22...
d5 {[%clk 0:01:06.7]} 23. Re2 {[%clk 0:00:36]} 23... Rab8 {[%clk 0:00:50.3]} 24.
Rae1 {[%clk 0:00:34.6]} 24... Bxa3 {[%clk 0:00:44.8]} 25. bxa3 {[%clk
0:00:35.5]} 25... b2 {[%clk 0:00:44.9]} 26. Rb1 {[%clk 0:00:34.6]} 26... Nxc3
{[%clk 0:00:44.4]} 27. Rxe8+ {[%clk 0:00:32.7]} 27... Qxe8 {[%clk 0:00:41.6]}
28. Rxb2 {[%clk 0:00:25.1]} 28... Rxb2 {[%clk 0:00:39.2]} 29. Nf3 {[%clk
0:00:26]} 29... Qe2 {[%clk 0:00:27.2]} 30. Be3 {[%clk 0:00:25.2]} 30... f6
{[%clk 0:00:20.2]} 31. Qh5 {[%clk 0:00:22.5]} 31... Rb8 {[%clk 0:00:17.1]} 32.
Qf5 {[%clk 0:00:20.4]} 32... Qd1+ {[%clk 0:00:12.3]} 33. Kh2 {[%clk 0:00:20.2]}
33... Ne4 {[%clk 0:00:04.9]} 34. Qe6+ {[%clk 0:00:17.9]} 34... Kh8 {[%clk
0:00:04.5]} 35. Nd4 {[%clk 0:00:16.9]} 35... Qd3 {[%clk 0:00:02]} 36. Qg4 {[%clk
0:00:15.7]} 1-0

[Event "Early-Titled-Tuesday-Blitz-October-24-2023"]
[Site "Chess.com"]
[Date "2023.10.24"]
[Round "1"]
[White "garicradomir"]
[Black "bocah_sakit"]
[Result "1-0"]
[WhiteElo "2406"]
[BlackElo "2693"]
[TimeControl "180+1"]
[EndTime "8:07:17 PDT"]
[Termination "garicradomir won by resignation"]

1. e4 {[%clk 0:02:59.6]} 1... c5 {[%clk 0:02:44.7]} 2. Nf3 {[%clk 0:02:53.9]}
2... Nc6 {[%clk 0:02:45.2]} 3. Bb5 {[%clk 0:02:53.5]} 3... g6 {[%clk 0:02:43.5]}
4. Bxc6 {[%clk 0:02:53.2]} 4... bxc6 {[%clk 0:02:42.9]} 5. d4 {[%clk 0:02:52.1]}
5... cxd4 {[%clk 0:02:42.1]} 6. Qxd4 {[%clk 0:02:52.4]} 6... Nf6 {[%clk
0:02:42.7]} 7. e5 {[%clk 0:02:52.7]} 7... Nd5 {[%clk 0:02:43.3]} 8. O-O {[%clk
0:02:48.8]} 8... Bg7 {[%clk 0:02:43.3]} 9. Qh4 {[%clk 0:02:47.7]} 9... O-O
{[%clk 0:02:41.7]} 10. Bh6 {[%clk 0:02:46.8]} 10... d6 {[%clk 0:02:26.1]} 11.
Bxg7 {[%clk 0:02:46.4]} 11... Kxg7 {[%clk 0:02:27]} 12. Na3 {[%clk 0:02:27.5]}
12... Bf5 {[%clk 0:02:20.1]} 13. c4 {[%clk 0:02:22.5]} 13... Nb6 {[%clk
0:02:19.6]} 14. Rad1 {[%clk 0:02:21.7]} 14... Qc7 {[%clk 0:02:14.6]} 15. Rfe1
{[%clk 0:02:13.5]} 15... Rfe8 {[%clk 0:02:12.8]} 16. g4 {[%clk 0:02:11]} 16...
Be6 {[%clk 0:02:11]} 17. g5 {[%clk 0:02:09.7]} 17... dxe5 {[%clk 0:02:06.3]} 18.
Qh6+ {[%clk 0:02:04]} 18... Kg8 {[%clk 0:02:06.2]} 19. Re4 {[%clk 0:02:04.5]}
19... Red8 {[%clk 0:01:42.5]} 20. Rh4 {[%clk 0:01:09.2]} 20... Rxd1+ {[%clk
0:01:09.6]} 21. Kg2 {[%clk 0:01:09.4]} 21... f6 {[%clk 0:01:04.6]} 22. Qxh7+
{[%clk 0:01:05.9]} 22... Kf8 {[%clk 0:01:03]} 23. Qxg6 {[%clk 0:00:46.7]} 23...
Bg8 {[%clk 0:00:21.2]} 24. Rh8 {[%clk 0:00:41.7]} 24... e6 {[%clk 0:00:19.1]}
25. Rxg8+ {[%clk 0:00:35.9]} 25... Ke7 {[%clk 0:00:19.2]} 26. Rg7+ {[%clk
0:00:28]} 26... Kd6 {[%clk 0:00:17.8]} 27. c5+ {[%clk 0:00:24.6]} 27... Kxc5
{[%clk 0:00:16.6]} 28. Rxc7 {[%clk 0:00:24.4]} 28... Nd5 {[%clk 0:00:16.1]} 29.
Qc2+ {[%clk 0:00:20.7]} 29... Kb4 {[%clk 0:00:14]} 30. Rb7+ {[%clk 0:00:14]}
30... Ka5 {[%clk 0:00:13.5]} 31. Qxd1 {[%clk 0:00:11.1]} 31... Nb6 {[%clk
0:00:12.4]} 32. Rxb6 {[%clk 0:00:10.6]} 32... Kxb6 {[%clk 0:00:09.9]} 33. Qb3+
{[%clk 0:00:10.9]} 33... Kc7 {[%clk 0:00:10.1]} 34. Qxe6 {[%clk 0:00:11.8]}
34... Rg8 {[%clk 0:00:10.8]} 35. Qxg8 {[%clk 0:00:10.8]} 35... fxg5 {[%clk
0:00:10.5]} 36. Qf7+ {[%clk 0:00:11.7]} 36... Kb6 {[%clk 0:00:11.1]} 37. Nxe5
{[%clk 0:00:12.2]} 1-0

[Event "Early-Titled-Tuesday-Blitz-October-24-2023"]
[Site "Chess.com"]
[Date "2023.10.24"]
[Round "1"]
[White "Maect19"]
[Black "ChessRespected"]
[Result "1-0"]
[WhiteElo "2268"]
[BlackElo "2567"]
[TimeControl "180+1"]
[EndTime "8:07:17 PDT"]
[Termination "Maect19 won on time"]

1. d4 {[%clk 0:02:59.1]} 1... d5 {[%clk 0:02:59.6]} 2. Nf3 {[%clk 0:02:56.8]}
2... Nf6 {[%clk 0:02:59.3]} 3. e3 {[%clk 0:02:56.6]} 3... c6 {[%clk 0:02:56.2]}
4. Bd3 {[%clk 0:02:56.3]} 4... Bg4 {[%clk 0:02:54]} 5. Nbd2 {[%clk 0:02:55.5]}
5... Nbd7 {[%clk 0:02:53.5]} 6. O-O {[%clk 0:02:55.1]} 6... e6 {[%clk
0:02:53.5]} 7. b3 {[%clk 0:02:51.6]} 7... Bd6 {[%clk 0:02:51.1]} 8. Bb2 {[%clk
0:02:51.1]} 8... Qc7 {[%clk 0:02:51.2]} 9. c4 {[%clk 0:02:49.4]} 9... Bxh2+
{[%clk 0:02:50.4]} 10. Kh1 {[%clk 0:02:42.8]} 10... Bd6 {[%clk 0:02:50.2]} 11.
e4 {[%clk 0:02:42.7]} 11... dxe4 {[%clk 0:02:47.7]} 12. Nxe4 {[%clk 0:02:43.6]}
12... Nxe4 {[%clk 0:02:47.9]} 13. Bxe4 {[%clk 0:02:43.6]} 13... Nf6 {[%clk
0:02:46.3]} 14. Bc2 {[%clk 0:02:43.2]} 14... O-O-O {[%clk 0:02:42.6]} 15. Qd3
{[%clk 0:02:36.3]} 15... Bf5 {[%clk 0:02:39.1]} 16. Qe2 {[%clk 0:02:30.4]} 16...
Bxc2 {[%clk 0:02:38.7]} 17. Qxc2 {[%clk 0:02:31.3]} 17... h5 {[%clk 0:02:36.3]}
18. a4 {[%clk 0:02:23.3]} 18... Ng4 {[%clk 0:02:35.9]} 19. a5 {[%clk 0:02:06.2]}
19... a6 {[%clk 0:02:34.1]} 20. Bc3 {[%clk 0:02:02.2]} 20... Qe7 {[%clk
0:02:29.2]} 21. Rab1 {[%clk 0:01:47.5]} 21... Bb4 {[%clk 0:02:27.2]} 22. Qd2
{[%clk 0:01:42.5]} 22... Bxc3 {[%clk 0:02:00]} 23. Qxc3 {[%clk 0:01:43.4]} 23...
c5 {[%clk 0:01:49.1]} 24. dxc5 {[%clk 0:01:32.1]} 24... Qxc5 {[%clk 0:01:50]}
25. Kg1 {[%clk 0:01:31]} 25... Qf5 {[%clk 0:01:44.2]} 26. b4 {[%clk 0:01:21.6]}
26... Rd3 {[%clk 0:01:43.8]} 27. Qb2 {[%clk 0:00:50.6]} 27... Rhd8 {[%clk
0:01:36.2]} 28. b5 {[%clk 0:00:46.9]} 28... axb5 {[%clk 0:01:25.8]} 29. a6
{[%clk 0:00:43.2]} 29... Rxf3 {[%clk 0:01:18.1]} 30. axb7+ {[%clk 0:00:40.2]}
30... Kb8 {[%clk 0:01:18.2]} 31. Qa2 {[%clk 0:00:21.8]} 31... Qe5 {[%clk
0:00:39.4]} 32. Qa8+ {[%clk 0:00:17.7]} 32... Kc7 {[%clk 0:00:39.3]} 33. Qa5+
{[%clk 0:00:17.2]} 33... Kd7 {[%clk 0:00:20.4]} 34. Rfd1+ {[%clk 0:00:16.3]}
34... Qd5 {[%clk 0:00:15.3]} 35. cxd5 {[%clk 0:00:14.4]} 35... exd5 {[%clk
0:00:16.2]} 36. Rxd5+ {[%clk 0:00:13.7]} 1-0

[Event "Early-Titled-Tuesday-Blitz-October-24-2023"]
[Site "Chess.com"]
[Date "2023.10.24"]
[Round "1"]
[White "Alenzer"]
[Black "Mikhail_Golubev"]
[Result "0-1"]
[WhiteElo "2082"]
[BlackElo "2536"]
[TimeControl "180+1"]
[EndTime "8:07:21 PDT"]
[Termination "Mikhail_Golubev won by checkmate"]

1. e4 {[%clk 0:02:55.9]} 1... c5 {[%clk 0:02:49.5]} 2. Nf3 {[%clk 0:02:55.1]}
2... d6 {[%clk 0:02:49.7]} 3. d4 {[%clk 0:02:55.4]} 3... cxd4 {[%clk 0:02:50]}
4. Nxd4 {[%clk 0:02:56.3]} 4... Nf6 {[%clk 0:02:50.5]} 5. Nc3 {[%clk 0:02:56.4]}
5... Nc6 {[%clk 0:02:50.8]} 6. Be3 {[%clk 0:02:55.2]} 6... Ng4 {[%clk
0:02:45.4]} 7. Nxc6 {[%clk 0:02:40.1]} 7... bxc6 {[%clk 0:02:29]} 8. Be2 {[%clk
0:02:07.2]} 8... Nxe3 {[%clk 0:02:21.2]} 9. fxe3 {[%clk 0:02:07.4]} 9... g6
{[%clk 0:02:14.5]} 10. O-O {[%clk 0:02:06.5]} 10... Bg7 {[%clk 0:02:14.5]} 11.
Bc4 {[%clk 0:02:05.2]} 11... O-O {[%clk 0:02:14.3]} 12. Qd2 {[%clk 0:02:01]}
12... e6 {[%clk 0:02:04.5]} 13. Rad1 {[%clk 0:01:57.5]} 13... Be5 {[%clk
0:02:04.2]} 14. Rf3 {[%clk 0:01:56.1]} 14... Rb8 {[%clk 0:02:00.3]} 15. Bb3
{[%clk 0:01:50.6]} 15... c5 {[%clk 0:01:55.4]} 16. Rdf1 {[%clk 0:01:43.1]} 16...
Ba6 {[%clk 0:01:50.3]} 17. Ne2 {[%clk 0:01:33.9]} 17... c4 {[%clk 0:01:42.2]}
18. Ba4 {[%clk 0:01:29.3]} 18... Rxb2 {[%clk 0:01:40.8]} 19. Qe1 {[%clk
0:00:53.5]} 19... Rxa2 {[%clk 0:01:31.6]} 20. Bc6 {[%clk 0:00:47.8]} 20... Ra1
{[%clk 0:01:21.8]} 21. Qf2 {[%clk 0:00:39.3]} 21... Rxf1+ {[%clk 0:01:20.2]} 22.
Qxf1 {[%clk 0:00:40.2]} 22... Qb6 {[%clk 0:01:15.8]} 23. Ba4 {[%clk 0:00:36.4]}
23... Kg7 {[%clk 0:00:53]} 24. Kh1 {[%clk 0:00:26.7]} 24... Qa5 {[%clk
0:00:45.2]} 25. Bd7 {[%clk 0:00:21.4]} 25... Qd8 {[%clk 0:00:34.4]} 26. Ba4
{[%clk 0:00:20.3]} 26... Bb7 {[%clk 0:00:29.3]} 27. Nf4 {[%clk 0:00:15.7]} 27...
Bxe4 {[%clk 0:00:27.5]} 28. Rf2 {[%clk 0:00:16]} 28... d5 {[%clk 0:00:26.2]} 29.
h3 {[%clk 0:00:08.5]} 29... Qh4 {[%clk 0:00:20.6]} 30. Kh2 {[%clk 0:00:08.9]}
30... g5 {[%clk 0:00:13.6]} 31. g3 {[%clk 0:00:06]} 31... Qh6 {[%clk 0:00:13.5]}
32. Ne2 {[%clk 0:00:05.2]} 32... g4 {[%clk 0:00:13.4]} 33. h4 {[%clk 0:00:04.8]}
33... Qxh4+ {[%clk 0:00:12]} 34. Kg1 {[%clk 0:00:05.5]} 34... Qh1# {[%clk
0:00:12]} 0-1

[Event "Early-Titled-Tuesday-Blitz-October-24-2023"]
[Site "Chess.com"]
[Date "2023.10.24"]
[Round "1"]
[White "Tonychess32"]
[Black "Alina_Gumerovna"]
[Result "1-0"]
[WhiteElo "2536"]
[BlackElo "2072"]
[TimeControl "180+1"]
[EndTime "8:07:22 PDT"]
[Termination "Tonychess32 won by resignation"]

1. e4 {[%clk 0:00:37.6]} 1... e6 {[%clk 0:02:57.8]} 2. d4 {[%clk 0:00:37]} 2...
d5 {[%clk 0:02:58.1]} 3. Bd3 {[%clk 0:00:37.6]} 3... c5 {[%clk 0:02:55.8]} 4.
exd5 {[%clk 0:00:37.5]} 4... Qxd5 {[%clk 0:02:55.1]} 5. Nf3 {[%clk 0:00:35.6]}
5... cxd4 {[%clk 0:02:54.8]} 6. O-O {[%clk 0:00:35.5]} 6... Nf6 {[%clk
0:02:54.4]} 7. Re1 {[%clk 0:00:35.2]} 7... Bd6 {[%clk 0:02:52.7]} 8. Nbd2 {[%clk
0:00:34.7]} 8... O-O {[%clk 0:02:50.3]} 9. Ne4 {[%clk 0:00:32.3]} 9... Nxe4
{[%clk 0:02:45.4]} 10. Bxe4 {[%clk 0:00:32.1]} 10... Qc5 {[%clk 0:02:44]} 11.
Qxd4 {[%clk 0:00:23]} 11... Qxd4 {[%clk 0:02:43.5]} 12. Nxd4 {[%clk 0:00:23.9]}
12... a6 {[%clk 0:02:28.2]} 13. Be3 {[%clk 0:00:21.5]} 13... f5 {[%clk
0:02:21.4]} 14. Bf3 {[%clk 0:00:19.2]} 14... e5 {[%clk 0:02:21.2]} 15. Nb3
{[%clk 0:00:17.3]} 15... e4 {[%clk 0:02:15.8]} 16. Be2 {[%clk 0:00:17.2]} 16...
Be6 {[%clk 0:02:09.9]} 17. Rad1 {[%clk 0:00:16.9]} 17... Bxb3 {[%clk 0:01:55.1]}
18. axb3 {[%clk 0:00:16.3]} 18... Be5 {[%clk 0:01:55.4]} 19. c3 {[%clk 0:00:16]}
19... Nc6 {[%clk 0:01:54.4]} 20. Bc4+ {[%clk 0:00:15.9]} 20... Kh8 {[%clk
0:01:54.1]} 21. Rd7 {[%clk 0:00:15.5]} 21... b5 {[%clk 0:01:51]} 22. Bd5 {[%clk
0:00:14.9]} 22... Rac8 {[%clk 0:01:51.3]} 23. Bxc6 {[%clk 0:00:15.1]} 23... Rxc6
{[%clk 0:01:51.5]} 24. g3 {[%clk 0:00:15.3]} 24... b4 {[%clk 0:01:45.6]} 25. c4
{[%clk 0:00:15]} 25... Bxb2 {[%clk 0:01:44.1]} 26. Red1 {[%clk 0:00:15.1]} 26...
h6 {[%clk 0:01:42.1]} 27. h4 {[%clk 0:00:14.7]} 27... Be5 {[%clk 0:01:38]} 28.
R1d5 {[%clk 0:00:14.6]} 28... Bc7 {[%clk 0:01:32.5]} 29. h5 {[%clk 0:00:14]}
29... f4 {[%clk 0:01:23.6]} 30. gxf4 {[%clk 0:00:13.3]} 30... Bxf4 {[%clk
0:01:24.1]} 31. Bd4 {[%clk 0:00:11.1]} 31... Rg8 {[%clk 0:01:15.2]} 32. Rf7
{[%clk 0:00:10.4]} 32... Bg5 {[%clk 0:01:13]} 33. Rdd7 {[%clk 0:00:10.1]} 33...
Bf6 {[%clk 0:01:10.2]} 34. Be3 {[%clk 0:00:08.9]} 34... a5 {[%clk 0:00:54.5]}
35. Ra7 {[%clk 0:00:08.1]} 35... Bd8 {[%clk 0:00:29.1]} 36. Kf1 {[%clk
0:00:07.6]} 36... Rf6 {[%clk 0:00:23.9]} 37. Rfd7 {[%clk 0:00:06.6]} 37... Rf5
{[%clk 0:00:22.1]} 38. Ke2 {[%clk 0:00:06.2]} 38... Rxh5 {[%clk 0:00:22.1]} 39.
Rab7 {[%clk 0:00:05.6]} 39... a4 {[%clk 0:00:21.4]} 40. bxa4 {[%clk 0:00:04.9]}
40... b3 {[%clk 0:00:21.4]} 41. Rxb3 {[%clk 0:00:04.9]} 41... Ra5 {[%clk
0:00:22.3]} 42. Rb5 {[%clk 0:00:04.7]} 42... Bf6 {[%clk 0:00:22.7]} 43. Rxa5
{[%clk 0:00:04.2]} 1-0

[Event "Early-Titled-Tuesday-Blitz-October-24-2023"]
[Site "Chess.com"]
[Date "2023.10.24"]
[Round "1"]
[White "CFN_Good_Evening"]
[Black "elisak43"]
[Result "1-0"]
[WhiteElo "1738"]
[BlackElo "2496"]
[TimeControl "180+1"]
[EndTime "8:07:25 PDT"]
[Termination "CFN_Good_Evening won on time"]

1. d3 {[%clk 0:02:55.5]} 1... d5 {[%clk 0:02:58.2]} 2. Nf3 {[%clk 0:02:54.8]}
2... Nf6 {[%clk 0:02:57.8]} 3. Bg5 {[%clk 0:02:52.9]} 3... Nc6 {[%clk
0:02:56.8]} 4. Nbd2 {[%clk 0:02:49.5]} 4... e5 {[%clk 0:02:56]} 5. e4 {[%clk
0:02:47.7]} 5... dxe4 {[%clk 0:02:54.5]} 6. dxe4 {[%clk 0:02:48.4]} 6... Bc5
{[%clk 0:02:54.7]} 7. Bb5 {[%clk 0:02:46.2]} 7... Bg4 {[%clk 0:02:43.5]} 8. O-O
{[%clk 0:02:40.7]} 8... O-O {[%clk 0:02:43.3]} 9. Bxc6 {[%clk 0:02:21.3]} 9...
bxc6 {[%clk 0:02:44.2]} 10. h3 {[%clk 0:02:17]} 10... Bxf3 {[%clk 0:02:39.3]}
11. Qxf3 {[%clk 0:02:17.9]} 11... Be7 {[%clk 0:02:24.2]} 12. Nc4 {[%clk
0:02:16.6]} 12... Nd7 {[%clk 0:02:22.9]} 13. Be3 {[%clk 0:02:07.6]} 13... Bd6
{[%clk 0:02:18.5]} 14. Rad1 {[%clk 0:02:06.5]} 14... Qe7 {[%clk 0:02:18.5]} 15.
Rd2 {[%clk 0:01:46.6]} 15... Nb6 {[%clk 0:02:13.5]} 16. Na5 {[%clk 0:01:34.8]}
16... Qe8 {[%clk 0:02:04.9]} 17. Rfd1 {[%clk 0:01:32.5]} 17... Bb4 {[%clk
0:02:00.1]} 18. c3 {[%clk 0:01:14.9]} 18... Bxa5 {[%clk 0:02:00.1]} 19. b4
{[%clk 0:01:07.4]} 19... Nc4 {[%clk 0:02:00.5]} 20. bxa5 {[%clk 0:00:38.9]}
20... Nxd2 {[%clk 0:01:59.3]} 21. Rxd2 {[%clk 0:00:39.8]} 21... Rd8 {[%clk
0:01:59.4]} 22. Rb2 {[%clk 0:00:40]} 22... Rb8 {[%clk 0:01:40.1]} 23. Rd2 {[%clk
0:00:36.8]} 23... Rb1+ {[%clk 0:01:33.1]} 24. Kh2 {[%clk 0:00:36.4]} 24... Rb5
{[%clk 0:01:25.9]} 25. a6 {[%clk 0:00:33.7]} 25... Qc8 {[%clk 0:01:21.9]} 26. c4
{[%clk 0:00:33.3]} 26... Ra5 {[%clk 0:01:20.9]} 27. Bxa7 {[%clk 0:00:32.9]}
27... Qxa6 {[%clk 0:01:18.8]} 28. Be3 {[%clk 0:00:31.5]} 28... Qxc4 {[%clk
0:01:17.8]} 29. Qf5 {[%clk 0:00:31.3]} 29... Qe6 {[%clk 0:01:14.8]} 30. Qg5
{[%clk 0:00:30.6]} 30... f6 {[%clk 0:01:10.9]} 31. Qh5 {[%clk 0:00:30.2]} 31...
Raa8 {[%clk 0:01:07.6]} 32. Qd1 {[%clk 0:00:30.1]} 32... Rxa2 {[%clk 0:01:05.8]}
33. Rd7 {[%clk 0:00:30.5]} 33... Ra1 {[%clk 0:00:45.9]} 34. Qd2 {[%clk
0:00:27.2]} 34... Ra2 {[%clk 0:00:41.1]} 35. Qd1 {[%clk 0:00:27.1]} 35... Raa8
{[%clk 0:00:33.3]} 36. Bc5 {[%clk 0:00:24.8]} 36... Rfe8 {[%clk 0:00:30.3]} 37.
Rxc7 {[%clk 0:00:25.1]} 37... Rad8 {[%clk 0:00:30.2]} 38. Qa4 {[%clk 0:00:25.2]}
38... Rc8 {[%clk 0:00:28.1]} 39. Rb7 {[%clk 0:00:24.7]} 39... h5 {[%clk
0:00:25.8]} 40. Qa7 {[%clk 0:00:24.6]} 40... Re7 {[%clk 0:00:11.6]} 41. Rxe7
{[%clk 0:00:24.6]} 1-0

[Event "Early-Titled-Tuesday-Blitz-October-24-2023"]
[Site "Chess.com"]
[Date "2023.10.24"]
[Round "1"]
[White "Fan_Of_Chucky"]
[Black "the_chess_child"]
[Result "0-1"]
[WhiteElo "2504"]
[BlackElo "2956"]
[TimeControl "180+1"]
[EndTime "8:07:26 PDT"]
[Termination "the_chess_child won on time"]

1. d4 {[%clk 0:02:56.4]} 1... Nf6 {[%clk 0:02:58.4]} 2. c4 {[%clk 0:02:53.1]}
2... g6 {[%clk 0:02:58.5]} 3. Nc3 {[%clk 0:02:53.6]} 3... Bg7 {[%clk 0:02:58.8]}
4. e4 {[%clk 0:02:54.2]} 4... d6 {[%clk 0:02:58.3]} 5. h3 {[%clk 0:02:54.8]}
5... O-O {[%clk 0:02:58.5]} 6. Be3 {[%clk 0:02:54.3]} 6... Nbd7 {[%clk
0:02:54.5]} 7. Nf3 {[%clk 0:02:50.2]} 7... e5 {[%clk 0:02:51.8]} 8. d5 {[%clk
0:02:50.7]} 8... a5 {[%clk 0:02:36]} 9. Be2 {[%clk 0:02:49.1]} 9... Nc5 {[%clk
0:02:34.7]} 10. Nd2 {[%clk 0:02:48.7]} 10... Nfd7 {[%clk 0:02:32.4]} 11. g4
{[%clk 0:02:48.6]} 11... Na6 {[%clk 0:02:31.7]} 12. h4 {[%clk 0:02:39]} 12...
Ndc5 {[%clk 0:02:31.4]} 13. a3 {[%clk 0:02:25]} 13... Bd7 {[%clk 0:02:27.7]} 14.
Qc2 {[%clk 0:02:20.5]} 14... a4 {[%clk 0:02:16.1]} 15. O-O-O {[%clk 0:02:12.4]}
15... f5 {[%clk 0:02:13.2]} 16. gxf5 {[%clk 0:02:10.5]} 16... gxf5 {[%clk
0:02:14.1]} 17. Bg5 {[%clk 0:02:11]} 17... Qe8 {[%clk 0:02:12.8]} 18. Rdg1
{[%clk 0:02:04.9]} 18... Kh8 {[%clk 0:02:11]} 19. f3 {[%clk 0:01:51.5]} 19... c6
{[%clk 0:01:41]} 20. Rg2 {[%clk 0:01:35.9]} 20... f4 {[%clk 0:00:59.8]} 21. h5
{[%clk 0:01:28]} 21... Bf6 {[%clk 0:00:54.2]} 22. Bxf6+ {[%clk 0:01:14.1]} 22...
Rxf6 {[%clk 0:00:55.1]} 23. Qd1 {[%clk 0:01:10.7]} 23... Qf7 {[%clk 0:00:49]}
24. Qe1 {[%clk 0:01:03]} 24... Rg8 {[%clk 0:00:40.5]} 25. Rxg8+ {[%clk
0:01:02.8]} 25... Qxg8 {[%clk 0:00:38.9]} 26. Rg1 {[%clk 0:01:02.8]} 26... Qf7
{[%clk 0:00:37.7]} 27. Qh4 {[%clk 0:01:02.5]} 27... Be8 {[%clk 0:00:33.7]} 28.
h6 {[%clk 0:00:11.3]} 28... Qf8 {[%clk 0:00:30.4]} 29. Rg7 {[%clk 0:00:09.3]}
29... Rg6 {[%clk 0:00:29]} 30. Rxg6 {[%clk 0:00:05.7]} 30... Bxg6 {[%clk
0:00:29.9]} 31. Qg5 {[%clk 0:00:04.8]} 31... Kg8 {[%clk 0:00:28]} 32. Bf1 {[%clk
0:00:03.3]} 32... Kf7 {[%clk 0:00:26.6]} 33. Bh3 {[%clk 0:00:03.8]} 33... Qe7
{[%clk 0:00:26]} 34. Qg2 {[%clk 0:00:02.5]} 34... Qh4 {[%clk 0:00:24.9]} 35. Bc8
{[%clk 0:00:02]} 35... Nd3+ {[%clk 0:00:21.8]} 36. Kc2 {[%clk 0:00:02]} 36...
Ne1+ {[%clk 0:00:22.2]} 0-1

[Event "Early-Titled-Tuesday-Blitz-October-24-2023"]
[Site "Chess.com"]
[Date "2023.10.24"]
[Round "1"]
[White "WPWPWP-2015"]
[Black "Nbk90"]
[Result "1-0"]
[WhiteElo "2557"]
[BlackElo "2170"]
[TimeControl "180+1"]
[EndTime "8:07:27 PDT"]
[Termination "WPWPWP-2015 won on time"]

1. e4 {[%clk 0:02:59.4]} 1... c6 {[%clk 0:02:58.5]} 2. d4 {[%clk 0:02:57.4]}
2... d5 {[%clk 0:02:58.5]} 3. e5 {[%clk 0:02:57.6]} 3... Bf5 {[%clk 0:02:56.9]}
4. Nf3 {[%clk 0:02:57.5]} 4... e6 {[%clk 0:02:56.4]} 5. Be2 {[%clk 0:02:57.8]}
5... Bg6 {[%clk 0:02:55.9]} 6. O-O {[%clk 0:02:57.5]} 6... Ne7 {[%clk
0:02:56.1]} 7. a4 {[%clk 0:02:56.2]} 7... Nd7 {[%clk 0:02:56]} 8. a5 {[%clk
0:02:56]} 8... a6 {[%clk 0:02:49.8]} 9. b4 {[%clk 0:02:53.3]} 9... Nf5 {[%clk
0:02:47.8]} 10. c3 {[%clk 0:02:52.1]} 10... Be7 {[%clk 0:02:38.2]} 11. Re1
{[%clk 0:02:51.6]} 11... O-O {[%clk 0:02:34.3]} 12. h3 {[%clk 0:02:49.6]} 12...
Nh4 {[%clk 0:02:19]} 13. Nh2 {[%clk 0:02:45.4]} 13... f6 {[%clk 0:02:09.3]} 14.
f4 {[%clk 0:02:38.7]} 14... fxe5 {[%clk 0:02:06.2]} 15. dxe5 {[%clk 0:02:38.1]}
15... c5 {[%clk 0:01:57.6]} 16. Qb3 {[%clk 0:02:15.2]} 16... Be4 {[%clk
0:01:34.7]} 17. Bf1 {[%clk 0:02:08.5]} 17... Kh8 {[%clk 0:01:20.6]} 18. Nd2
{[%clk 0:01:56.3]} 18... Bg6 {[%clk 0:01:10.8]} 19. Ndf3 {[%clk 0:01:54.4]}
19... Nf5 {[%clk 0:01:02.1]} 20. Ra2 {[%clk 0:01:43.2]} 20... Ng3 {[%clk
0:00:55]} 21. Be3 {[%clk 0:01:37.8]} 21... Qc7 {[%clk 0:00:45]} 22. Rb2 {[%clk
0:01:16.7]} 22... Rac8 {[%clk 0:00:35.8]} 23. b5 {[%clk 0:01:02.7]} 23... c4
{[%clk 0:00:30.3]} 24. b6 {[%clk 0:00:56.3]} 24... cxb3 {[%clk 0:00:28.5]} 25.
bxc7 {[%clk 0:00:56]} 25... Rxc7 {[%clk 0:00:29.4]} 26. Rxb3 {[%clk 0:00:56.2]}
26... Nc5 {[%clk 0:00:29.1]} 27. Rb6 {[%clk 0:00:55.7]} 27... Na4 {[%clk
0:00:27.5]} 28. Rxe6 {[%clk 0:00:54.2]} 28... Nxc3 {[%clk 0:00:24.6]} 29. Bb6
{[%clk 0:00:50.6]} 29... Rd7 {[%clk 0:00:17.4]} 30. Bd4 {[%clk 0:00:45.6]} 30...
Nce4 {[%clk 0:00:13.9]} 31. Rb6 {[%clk 0:00:43.2]} 31... Rc8 {[%clk 0:00:11.9]}
32. e6 {[%clk 0:00:42.5]} 32... Rdd8 {[%clk 0:00:10.9]} 33. Ne5 {[%clk
0:00:41.9]} 33... Nf5 {[%clk 0:00:09.2]} 34. Rxb7 {[%clk 0:00:35.7]} 34... Nxd4
{[%clk 0:00:07.9]} 35. Rxe7 {[%clk 0:00:34.9]} 35... Nf5 {[%clk 0:00:06.8]} 36.
Rd7 {[%clk 0:00:29.6]} 36... Re8 {[%clk 0:00:06.7]} 37. Nf7+ {[%clk 0:00:25.5]}
37... Bxf7 {[%clk 0:00:06]} 38. exf7 {[%clk 0:00:25.8]} 38... Rf8 {[%clk
0:00:06.5]} 39. Ng4 {[%clk 0:00:25.1]} 39... Nf6 {[%clk 0:00:04.9]} 40. Nxf6
{[%clk 0:00:24.7]} 40... gxf6 {[%clk 0:00:05.8]} 41. Bxa6 {[%clk 0:00:24.5]}
41... Kg7 {[%clk 0:00:05.4]} 42. Bxc8 {[%clk 0:00:24.2]} 42... Rxc8 {[%clk
0:00:06.3]} 43. Re8 {[%clk 0:00:22.9]} 43... Rc1+ {[%clk 0:00:05]} 44. Kh2
{[%clk 0:00:23]} 1-0